[Event "15th Tashkent Open Agzamov 2022"]
[Site "Tashkent"]
[Date "2022.05.05"]
[Round "1.5"]
[White "Nurmanova, Alua"]
[Black "Mchedlishvili, Mikheil"]
[Result "1/2-1/2"]
[ECO "B43"]
[WhiteElo "2194"]
[BlackElo "2595"]
[Annotator "TA"]
[PlyCount "106"]
[EventDate "2022.05.05"]
[EventType "swiss"]
[EventCountry "UZB"]
[SourceTitle "playchess.com"]
[Source "ChessBase"]
[SourceQuality "1"]
[TimeControl "5400+30"]

{[%evp 14,106,25,15,9,4,19,8,17,6,0,-18,-35,-28,-38,-70,-57,-114,-121,-92,-75,-92,-58,-74,-39,-32,-60,-176,-177,-190,-195,-278,-269,-282,-282,-283,-278,-429,-404,-475,-176,-162,-184,-177,-54,-66,-69,-42,-82,-234,-225,-402,-339,-413,-407,-387,-407,-400,-404,-438,-410,-537,-71,-41,-15,-18,-19,-20,-19,-19,-22,-22,-23,-27,0,0,0,0,0,-158,-12,-57,0,0,0,0,0,0,0,0,0,0,0,0,0]} 1. e4 {[%emt 0:00:01]} c5 {[%emt 0:00:10]} 2. Nf3 {[%emt 0:00:08]} e6 {[%emt 0:00:21]} 3. d4 {[%emt 0:00:05]} cxd4 {[%emt 0:00:14]} 4. Nxd4 {[%emt 0:00:06]} a6 {[%emt 0:00:31]} 5. Nc3 {[%emt 0:00:49]} Qc7 {[%emt 0:01:18]} 6. Bd3 {[%emt 0:04:19]} Nf6 {[%emt 0:01:44]} 7. O-O {[%emt 0:01:01]} d6 {[%emt 0:01:47]} 8. a4 {[%emt 0:01:47]} b6 {[%emt 0:01:59] 8...Be7 is more fashionable. B43: Sicilian: Kan Variation: 5 Nc3.} 9. Be3 {[%emt 0:02:31]} Bb7 {[%emt 0:03:31]} 10. f4 {[%emt 0:02:31]} Nbd7 {[%emt 0:01:12]} 11. Qe2 {[%emt 0:03:21]} g6 {[%emt 0:09:32] [#]} 12. f5 $146 {[%emt 0:07:14]} ({Predecessor:} 12. Bf2 Bg7 13. Rae1 O-O 14. Nb3 Nc5 15. Nxc5 bxc5 16. e5 Qc6 17. Bh4 Nd5 18. Nxd5 exd5 {0-1 (39) Nithander,V (2434)-Berg,E (2594) Norrkoeping 2010}) 12... gxf5 {[%emt 0:03:33]} 13. exf5 {[%emt 0:01:04]} e5 {[%emt 0:01:11]} 14. Ne6 $1 {[%emt 0:08:37]} Qc6 {[%emt 0:00:28]} (14... fxe6 15. fxe6 Rg8 16. exd7+ Qxd7 17. Bf5 $18 (17. Rxf6 Rxg2+ 18. Qxg2 Bxg2 $15)) 15. Bc4 {[%emt 0:11:10]} Rg8 $17 {[%emt 0:04:47][%cal Rg8g2]} (15... fxe6 $2 16. fxe6 Be7 17. exd7+ Qxd7 18. Bg5 $18 (18. Bxb6 Qg4 $18)) 16. Rf2 {[%emt 0:16:19][%cal Oa1d1]} Rc8 {[%emt 0:05:45]} 17. Ba2 {[%emt 0:05:46]} Be7 {[%emt 0:22:41]} 18. Ng5 {[%emt 0:06:53]} Rg7 $36 {[%emt 0:14:45][%mdl 2048] Threatens to win with ...d5. White is under pressure.} (18... d5 $5 {[%cal Re7c5]} 19. Rd1 Qc7 $15) 19. Rd1 {[%emt 0:04:12] Against d5} Qc7 {[%emt 0:00:43]} 20. Rdf1 {[%emt 0:10:52]} ({White should try} 20. Nge4 $15) 20... d5 $19 {[%emt 0:07:53][%cal Bd6d5,Bd5d4][%mdl 32]} 21. Ne6 {[%emt 0:03:14]} fxe6 {[%emt 0:00:06]} 22. fxe6 {[%emt 0:00:02] [#]} (22. Bh6 {keeps fighting.} Rxg2+ 23. Rxg2 exf5 24. Rxf5 Qc5+ 25. Rff2) 22... d4 $1 {[%emt 0:01:02]} 23. Bxd4 {[%emt 0:06:18]} (23. exd7+ Qxd7) 23... exd4 {[%emt 0:05:45]} 24. exd7+ {[%emt 0:00:15]} Nxd7 {[%emt 0:02:14]} (24... Qxd7 $2 25. Be6 Qc6 26. Bxc8 Qxc8 27. Nb1 $19) 25. Qh5+ {[%emt 0:02:44]} (25. Nd5 $142 Qe5 26. Nf4) 25... Kd8 {[%emt 0:00:09]} 26. Ne2 {[%emt 0:01:08]} Qc5 {[%emt 0:04:17]} (26... Qxc2 27. Nf4 Nf6 28. Qe5 (28. Qh6 Rg6 $11) 28... Rxg2+ 29. Nxg2 $14) (26... Qd6 27. Ng3 Rc5) 27. Nf4 {[%emt 0:00:14][%cal Rf4e6]} Rc6 {[%emt 0:00:36]} 28. Bd5 {[%emt 0:00:50] [#]} Kc8 {[%emt 0:04:02]} (28... Bg5 $1 $19 {[%cal Rg5f4]} 29. b4 Qd6 30. Bxc6 (30. Ne6+ $2 Qxe6 31. Bxe6 Rxe6 $19) 30... Bxc6) 29. Bxc6 {[%emt 0:00:47]} Qxc6 {[%emt 0:00:16]} (29... Bxc6 30. Qe8+ Kb7 31. Ne6 $14) 30. Qe8+ {[%emt 0:00:26]} Bd8 {[%emt 0:00:11] This bishop pair is nice.} 31. c3 $2 {[%emt 0:00:38]} (31. Re2 $17) 31... d3 {[%emt 0:00:42]} 32. c4 $2 {[%emt 0:00:24]} (32. Qe6 {was necessary.}) 32... Nc5 {[%emt 0:01:07]} 33. Qf8 {[%emt 0:00:19]} Qd7 {[%emt 0:01:18]} ({Don't go for} 33... Ne6 $2 34. Qf5 Bh4 35. b3 $19 (35. Qxe6+ $2 Qxe6 36. Nxe6 Bxf2+ 37. Rxf2 Re7 $19)) 34. Nd5 {[%emt 0:00:28]} Bxd5 {[%emt 0:00:45]} 35. cxd5 {[%emt 0:00:01]} Re7 {[%emt 0:00:10]} 36. Qg8 {[%emt 0:00:59]} Kb7 {[%emt 0:00:47]} 37. Rf6 {[%emt 0:00:49]} d2 $2 {[%emt 0:00:28]} (37... Ne4 $19 38. Rf7 Bc7 39. Rxe7 Qxe7) 38. d6 $17 {[%emt 0:00:34]} Re1 {[%emt 0:00:26]} 39. Qd5+ {[%emt 0:00:09]} Kb8 {[%emt 0:00:14]} 40. Qxd2 {[%emt 0:00:07]} Rxf1+ {[%emt 0:00:16]} 41. Rxf1 {[%emt 0:00:05]} Qxa4 {[%emt 0:00:10]} 42. b4 {[%emt 0:00:43]} Nb7 {[%emt 0:00:17]} 43. d7 {[%emt 0:00:44]} Ka7 {[%emt 0:00:17]} 44. Rc1 {[%emt 0:00:18]} Be7 {[%emt 0:00:49]} 45. Rc7 {[%emt 0:00:43] And now Qd5 would win.} Qa1+ {[%emt 0:01:17]} 46. Kf2 $2 {[%emt 0:00:07] [#]} (46. Rc1 $11 Qa4 47. Rc7 Qa1+ 48. Rc1 Qa4) 46... Bd8 {[%emt 0:00:29]} ({Worse is} 46... Qe5 47. d8=Q Qf6+ 48. Kg1 Bxd8 49. Rxh7 $15) (46... Qf6+ $1 $17 47. Kg1 Bd6) 47. Rc8 {[%emt 0:00:50]} h5 {[%emt 0:00:36]} (47... Qf6+ $1 $15 48. Kg1 Qf5) 48. g3 {[%emt 0:00:37] The position is equal.} Qh1 {[%emt 0:00:19]} 49. Qf4 {[%emt 0:00:27][%csl Gc8][%cal Rf4b8] Active counter play!} Qxh2+ {[%emt 0:00:43]} 50. Kf1 {[%emt 0:00:26][%csl Gc8][%cal Rf4b8]} Qh1+ {[%emt 0:00:41]} 51. Kf2 {[%emt 0:00:06][%csl Gc8][%cal Rf4b8] Chess con chili.} Qh2+ {[%emt 0:00:35]} 52. Kf1 {[%emt 0:00:21][%csl Gc8][%cal Rf4b8]} Qh1+ {[%emt 0:00:28]} 53. Kf2 {[%emt 0:00:19][%csl Gc8][%cal Rf4b8]} Qh2+ {[%emt 0:00:02] Whites escaped into a draw.  Weighted Error Value: White=0.36/Black=0.38} 1/2-1/2

[Event "15th Tashkent Open Agzamov 2022"]
[Site "Tashkent"]
[Date "2022.05.05"]
[Round "1.6"]
[White "Asadli, Vugar"]
[Black "Sharipov, Davron"]
[Result "0-1"]
[ECO "B92"]
[WhiteElo "2578"]
[BlackElo "2163"]
[Annotator "TA"]
[PlyCount "48"]
[EventDate "2022.05.05"]
[EventType "swiss"]
[EventCountry "UZB"]
[SourceTitle "playchess.com"]
[Source "ChessBase"]
[SourceQuality "1"]
[TimeControl "5400+30"]

{[%evp 21,48,7,18,27,41,37,27,25,45,35,50,31,26,20,35,-9,-15,-35,-25,-34,-37,-41,-52,-43,-43,-79,-88,-395,-401]} 1. e4 {[%emt 0:00:04]} c5 {[%emt 0:00:12]} 2. Nf3 {[%emt 0:00:09]} d6 {[%emt 0:00:09]} 3. d4 {[%emt 0:00:06]} cxd4 {[%emt 0:00:06]} 4. Nxd4 {[%emt 0:00:04]} Nf6 {[%emt 0:00:05]} 5. Nc3 {[%emt 0:00:05]} a6 {[%emt 0:00:07]} 6. Be2 {[%emt 0:00:05]} e5 {[%emt 0:00:09]} 7. Nb3 {[%emt 0:00:05]} Be7 {[%emt 0:00:06]} 8. O-O {[%emt 0:00:13]} O-O {[%emt 0:00:05]} 9. Kh1 {[%emt 1:34:09]} b5 {[%emt 0:06:07]} 10. a4 {[%emt 0:00:00]} b4 {[%emt 0:01:20]} 11. Nd5 {[%emt 0:00:00]} Bb7 {[%emt 0:08:53]} 12. Nxf6+ {[%emt 0:00:00] B92: Sicilian Najdorf: 6 Be2.} Bxf6 {[%emt 0:00:14]} 13. f3 {[%emt 0:00:00]} a5 {[%emt 0:05:05]} 14. Be3 {[%emt 0:00:00] White has an edge.} Be7 {[%emt 0:11:22] [#]} 15. Bb5 $146 {[%emt 0:00:00]} ({Predecessor:} 15. Qd2 d5 16. exd5 Bxd5 17. Rad1 Bxb3 18. cxb3 Qxd2 19. Rxd2 Nc6 20. Rd7 Bf6 21. Bc4 {1-0 (47) Butkiewicz,L (2430)-Lach,A (2177) Mrzezyno 2011}) 15... Nd7 {[%emt 0:14:39][%cal Bb8d7,Bd7f6,Bf6e4][%mdl 32]} 16. Nd2 {[%emt 0:00:00][%cal Bb3d2,Bd2c4,Bc4e5][%mdl 32]} d5 {[%emt 0:11:04] [#]} 17. Nc4 $1 {[%emt 0:00:00]} Nf6 {[%emt 0:07:29]} 18. Nxe5 {[%emt 0:00:00] And now Nc6 would win.} Qc7 {[%emt 0:03:22] Against Nc6} 19. Bd4 {[%emt 0:00:00]} dxe4 {[%emt 0:02:04]} 20. fxe4 {[%emt 0:00:00]} Rad8 {[%emt 0:01:55][%cal Od8d4] [#] White must now prevent ...Rxd4!} 21. c3 {[%emt 0:00:00]} bxc3 {[%emt 0:03:08]} 22. bxc3 {[%emt 0:00:00]} Nxe4 {[%emt 0:02:54]} 23. Qg4 {[%emt 0:00:00] Strongly threatening Nd7.} Bf6 {[%emt 0:02:39]} 24. Rf5 {[%emt 0:00:00][%mdl 8192]} (24. Qf4 $17) 24... Bxe5 {[%emt 0:01:46] Weighted Error Value: White=0.53/Black=0.02 (flawless)} 0-1

[Event "15th Tashkent Open Agzamov 2022"]
[Site "Tashkent"]
[Date "2022.05.05"]
[Round "1.7"]
[White "Agzamov, Viachesiav"]
[Black "Sanal, Vahap"]
[Result "0-1"]
[ECO "E13"]
[WhiteElo "2143"]
[BlackElo "2575"]
[Annotator "TA"]
[PlyCount "69"]
[EventDate "2022.05.05"]
[EventType "swiss"]
[EventCountry "UZB"]
[SourceTitle "playchess.com"]
[Source "ChessBase"]
[SourceQuality "1"]
[TimeControl "5400+30"]

{[%evp 15,69,0,13,-25,-22,-12,-9,-12,-10,-20,-13,-23,-16,-18,44,-8,-25,-16,-31,-28,0,0,0,0,0,0,0,-79,-80,-84,-58,-93,0,0,0,-15,0,-63,-76,-89,-92,-80,-85,-93,-54,-47,-60,-74,-62,-332,-326,-583,-565,-486,-394,-245]} 1. d4 {[%emt 0:00:04]} Nf6 {[%emt 0:00:14]} 2. c4 {[%emt 0:00:13]} e6 {[%emt 0:00:07]} 3. Nf3 {[%emt 0:00:27]} b6 {[%emt 0:00:38]} 4. Nc3 {[%emt 0:02:49]} Bb7 {[%emt 0:00:12]} 5. Qc2 {[%emt 0:01:25]} Bb4 {[%emt 0:00:34]} 6. Bg5 {[%emt 0:01:50]} h6 {[%emt 0:00:41]} 7. Bh4 {[%emt 0:00:34]} g5 {[%emt 0:04:41]} 8. Bg3 {[%emt 0:00:10]} Ne4 {[%emt 0:00:17]} 9. Nd2 {[%emt 0:04:07] E13: Queen's Indian/Nimzo-Indian hybrid: 4 Nc3 Bb7 5 Bg5 h6 6 Bh4 Bb4.} Bxc3 {[%emt 0:02:22]} 10. bxc3 {[%emt 0:00:09]} Nxg3 {[%emt 0:00:09]} 11. hxg3 {[%emt 0:00:19] The position is equal.} d6 {[%emt 0:00:32]} 12. g4 {[%emt 0:04:58]} Nd7 {[%emt 0:00:30]} 13. e4 {[%emt 0:01:05]} Qe7 {[%emt 0:04:30]} 14. Be2 {[%emt 0:03:19] [#]} f5 $146 {[%emt 0:06:54]} (14... O-O-O $11) ({Predecessor:} 14... O-O-O 15. f3 Kb8 16. O-O-O c5 17. Nf1 d5 18. Ne3 cxd4 19. Rxd4 dxe4 20. fxe4 Qa3+ {½-½ (40) Babujian,L (2471)-Iordachescu,V (2634) Al Ain 2014}) 15. exf5 {[%emt 0:07:40]} (15. gxf5 $14 exf5 16. Bh5+ Kf8 17. O-O (17. e5 Qe6 $15)) 15... exf5 {[%emt 0:02:21]} 16. O-O-O {[%emt 0:02:01]} O-O-O {[%emt 0:01:08]} (16... Qxe2 $2 17. Rhe1 Qe7 18. Rxe7+ Kxe7 19. Re1+ Kd8 20. Qxf5 $18) 17. Rhe1 {[%emt 0:01:58]} Qf7 {[%emt 0:07:15]} 18. gxf5 {[%emt 0:02:14]} Bxg2 {[%emt 0:01:05]} 19. f3 $1 {[%emt 0:00:33]} Bh3 {[%emt 0:02:37]} 20. Bd3 {[%emt 0:02:12][%cal Oc4c5]} Rhf8 {[%emt 0:03:20][%cal Rh3f5]} 21. Qa4 {[%emt 0:01:22]} (21. Re6 $11 {keeps the balance.}) 21... Bxf5 $17 {[%emt 0:01:03]} ({Much worse is} 21... Kb8 $6 22. Be4 Nf6 23. Rh1 Nxe4 24. fxe4 $11) 22. Bxf5 {[%emt 0:01:04]} Qxf5 {[%emt 0:00:05]} 23. Qxa7 {[%emt 0:00:12] [#]} Qa5 {[%emt 0:14:07]} (23... Qd3 $1 $17 {[%cal Rd3c3]} 24. Qa8+ Nb8) 24. Qxa5 $11 {[%emt 0:00:14]} bxa5 {[%emt 0:00:05]} 25. Re6 {[%emt 0:00:43]} Rf6 {[%emt 0:00:20]} 26. Rxf6 {[%emt 0:00:45]} (26. Re7 $11) 26... Nxf6 {[%emt 0:00:05][%mdl 4096] Endgame KRN-KRN} 27. Rh1 {[%emt 0:00:19]} h5 {[%emt 0:01:18][%cal Bh6h5,Bh5h4,Bh4h3][%mdl 32]} 28. Kc2 {[%emt 0:00:18]} Kd7 {[%emt 0:07:14]} 29. Kd3 {[%emt 0:01:19]} Ke6 {[%emt 0:00:06]} 30. Ne4 {[%emt 0:00:34]} Nxe4 {[%emt 0:00:13]} 31. Kxe4 {[%emt 0:00:09]} Rh8 {[%emt 0:00:17] And now ...h4 would win.} 32. a4 $2 {[%emt 0:01:46][%mdl 8192] Loses the game.} ({Only move:} 32. f4 $1 $15) 32... h4 $19 {[%emt 0:01:11]} 33. Rg1 $2 {[%emt 0:07:54]} (33. Ke3 Kf5 34. Rb1) 33... h3 {[%emt 0:02:39] [#] ...Rh4+ is the strong threat.} 34. Rh1 {[%emt 0:00:08]} Rh4+ {[%emt 0:00:13]} 35. Ke3 {[%emt 0:00:19] Weighted Error Value: White=0.46/Black=0.15 (very precise)} 0-1

[Event "15th Tashkent Open Agzamov 2022"]
[Site "Tashkent"]
[Date "2022.05.05"]
[Round "1.8"]
[White "Romanov, Evgeny"]
[Black "Valiyev, Shahin"]
[Result "1-0"]
[ECO "B23"]
[WhiteElo "2573"]
[BlackElo "2130"]
[Annotator "TA"]
[PlyCount "71"]
[EventDate "2022.05.05"]
[EventType "swiss"]
[EventCountry "UZB"]
[SourceTitle "playchess.com"]
[Source "ChessBase"]
[SourceQuality "1"]
[TimeControl "5400+30"]

{[%evp 9,71,21,37,31,27,-10,16,1,4,0,49,54,70,55,57,-21,-23,-18,-20,-27,64,64,62,42,113,125,152,104,266,234,377,364,367,289,293,232,350,329,446,433,848,854,991,435,435,460,477,470,451,468,461,470,467,441,467,460,459,465,463,460,465,450,428,390]} 1. e4 {[%emt 0:00:48]} c5 {[%emt 0:00:09]} 2. Ne2 {[%emt 0:00:09]} Nf6 {[%emt 0:02:21]} 3. Nbc3 {[%emt 0:00:40]} d6 {[%emt 0:01:00]} 4. h3 {[%emt 0:00:32]} a6 {[%emt 0:00:54]} 5. g4 {[%emt 0:02:01] [#]} e6 $146 {[%emt 0:00:56]} ({Predecessor:} 5... Nc6 6. Bg2 e5 7. d3 Be7 8. Ng3 Be6 9. Nf5 Bf8 10. g5 Nd7 11. h4 g6 {0-1 (24) Andreikin,D (2726)-Grischuk,A (2777) Chess.com INT 2020}) 6. Bg2 {[%emt 0:00:40] B23: Closed Sicilian: Lines without g3.} Nfd7 {[%emt 0:07:35]} 7. O-O {[%emt 0:07:11]} Be7 {[%emt 0:01:31]} 8. f4 {[%emt 0:00:16] The position is equal.} Nc6 {[%emt 0:01:45]} 9. d3 {[%emt 0:02:51]} Qc7 {[%emt 0:05:52]} (9... h6 $11) 10. f5 $14 {[%emt 0:05:03]} Nde5 {[%emt 0:03:59]} 11. Nf4 $1 {[%emt 0:00:18]} g6 {[%emt 0:14:56]} 12. fxe6 {[%emt 0:15:30]} (12. Nce2 $14) 12... fxe6 $11 {[%emt 0:00:19]} 13. Nce2 {[%emt 0:00:07]} O-O {[%emt 0:09:09]} 14. c3 {[%emt 0:05:05]} Nd8 {[%emt 0:00:44]} ({Black should play} 14... g5 $11 15. Nh5 Bd7) 15. d4 {[%emt 0:00:33]} Nef7 {[%emt 0:02:10]} 16. Qd3 {[%emt 0:08:51][%cal Oe4e5]} Kg7 {[%emt 0:07:02]} (16... cxd4 $14 17. cxd4 Bd7) 17. Qg3 $16 {[%emt 0:01:46] White is more active.} Bd7 {[%emt 0:03:11]} 18. Be3 {[%emt 0:02:51]} (18. h4 $142) 18... c4 $2 {[%emt 0:00:21] A mistake that costs the game.} (18... Bb5 $16 {was necessary.}) 19. Rf2 $18 {[%emt 0:01:12]} Rb8 {[%emt 0:11:14]} (19... a5 $142 20. Raf1 Kg8) 20. h4 {[%emt 0:02:30]} b5 {[%emt 0:00:39]} 21. Bh3 {[%emt 0:00:39]} Qc8 {[%emt 0:02:42]} 22. Nh5+ {[%emt 0:04:53][%cal Bf4h5,Bh5f6,Bf6d5][%mdl 32]} Kh8 {[%emt 0:04:35]} (22... gxh5 $2 23. gxh5+ Kh8 24. Rg2 $18) (22... Kg8 {was worth a try.} 23. Nf6+ Bxf6) 23. Nf6 {[%emt 0:00:13]} e5 {[%emt 0:01:55]} 24. Raf1 {[%emt 0:01:30] White is clearly winning.} Kg7 {[%emt 0:07:52]} (24... Bxf6 $142 25. Rxf6 Rb7 26. Rxd6 Ne6 27. Rxa6 Kg8) 25. Nd5 {[%emt 0:08:11]} Re8 {[%emt 0:00:52]} 26. Rxf7+ {[%emt 0:07:22]} Nxf7 {[%emt 0:00:10]} 27. Qf3 {[%emt 0:00:11]} Be6 {[%emt 0:06:31]} 28. Nxe7 {[%emt 0:00:23]} Rxe7 {[%emt 0:00:05]} 29. Qf6+ {[%emt 0:00:13]} Kg8 {[%emt 0:00:05]} 30. Qxe7 {[%emt 0:03:43]} Rb7 {[%emt 0:00:07]} 31. Qf6 {[%emt 0:01:05] [#] Hoping for h5.} Bxg4 {[%emt 0:00:12]} 32. Bxg4 {[%emt 0:00:19]} Qxg4+ {[%emt 0:00:06]} 33. Kf2 {[%emt 0:00:12]} exd4 {[%emt 0:00:47]} 34. Bxd4 {[%emt 0:03:20][%csl Gd4][%cal Rf6g7]} Ne5 {[%emt 0:00:25] [#] White must now prevent ...Rf7.} 35. Qd8+ {[%emt 0:00:34]} ({Don't do} 35. Ke1 Rf7 36. Qd8+ Kg7 37. Qxd6 Qxh4+ 38. Rf2 Rxf2 39. Qxe5+ (39. Bxf2 Nd3+ 40. Kd2 Nxf2 $17) 39... Rf6+ 40. Kd2 Kf7 41. Qc7+ Kg8 42. Qd8+ Kf7 43. Qd7+ Kg8 44. Qd8+ Kf7 45. Qd7+ Kg8 46. Qd8+ $18) 35... Kg7 {[%emt 0:00:47]} 36. Ke1 {[%emt 0:05:02] Weighted Error Value: White=0.29 (precise) /Black=0.43} 1-0

[Event "15th Tashkent Open Agzamov 2022"]
[Site "Tashkent"]
[Date "2022.05.05"]
[Round "1.9"]
[White "Sharifov, Mekhriddin"]
[Black "Van Foreest, Lucas"]
[Result "0-1"]
[ECO "B01"]
[WhiteElo "2129"]
[BlackElo "2572"]
[Annotator "TA"]
[PlyCount "82"]
[EventDate "2022.05.05"]
[EventType "swiss"]
[EventCountry "UZB"]
[SourceTitle "playchess.com"]
[Source "ChessBase"]
[SourceQuality "1"]
[TimeControl "5400+30"]

{[%evp 9,82,55,51,39,41,36,38,35,47,35,44,10,21,-4,2,-10,15,8,9,0,0,0,0,0,0,-20,11,-6,0,0,0,0,0,0,0,-14,-21,-20,0,0,0,0,0,-39,-47,-82,-48,-209,-207,-326,-202,-201,-190,-160,-171,-239,-102,-750,-180,-1751,-1590,-1410,-1057,-1380,-1222,-964,-932,-1353,-1202,-4144,-3424,-1329,-1219,-29983,-29984]} 1. e4 {[%emt 0:00:05]} d5 {[%emt 0:00:30]} 2. exd5 {[%emt 0:00:18]} Qxd5 {[%emt 0:00:32]} 3. Nc3 {[%emt 0:00:13]} Qd6 {[%emt 0:00:50]} 4. d4 {[%emt 0:00:18]} Nf6 {[%emt 0:00:36]} 5. Nf3 {[%emt 0:01:40]} c6 {[%emt 0:00:37]} 6. g3 {[%emt 0:02:40] B01: Scandinavian Defence.} Bf5 {[%emt 0:01:01]} 7. Bg2 {[%emt 0:00:27]} e6 {[%emt 0:00:31]} 8. O-O {[%emt 0:00:34] White is slightly better.} h6 {[%emt 0:00:08]} 9. Bf4 {[%emt 0:06:36]} Qd8 {[%emt 0:00:16]} 10. Ne5 {[%emt 0:02:05]} Be7 {[%emt 0:01:13]} 11. Qd2 {[%emt 0:06:55]} O-O {[%emt 0:00:35]} 12. Rfe1 {[%emt 0:05:04] [#]} Na6 $146 {[%emt 0:01:21]} ({Predecessor:} 12... Nbd7 13. Rad1 Nxe5 14. Bxe5 Bd6 15. Qf4 Bxe5 16. dxe5 Nd5 17. Bxd5 cxd5 18. Nxd5 exd5 19. Qxf5 Qa5 20. a3 Rfe8 21. e6 fxe6 22. Rxe6 Red8 23. Re7 Qb5 24. Qf7+ {1-0 (24) Burcu,C (2309)-Sailer,M (2109) Chess.com INT 2021}) 13. a3 {[%emt 0:02:53]} Nc7 {[%emt 0:00:11]} 14. Ne2 {[%emt 0:21:39]} Ncd5 {[%emt 0:01:39]} 15. c4 {[%emt 0:00:43]} Nxf4 {[%emt 0:00:05]} 16. Nxf4 {[%emt 0:05:35]} Qc7 {[%emt 0:00:55]} 17. b4 {[%emt 0:00:23]} Rad8 {[%emt 0:06:30]} 18. Qe3 {[%emt 0:07:00]} Ng4 {[%emt 0:11:36]} 19. Nxg4 {[%emt 0:01:43]} Bxg4 {[%emt 0:00:03]} 20. h3 {[%emt 0:02:32]} Bf5 {[%emt 0:00:41]} 21. d5 {[%emt 0:11:13][%cal Rd5e6]} Bg5 {[%emt 0:31:37]} 22. Qxa7 {[%emt 0:02:49]} Bxf4 {[%emt 0:05:21]} 23. gxf4 {[%emt 0:00:36]} exd5 {[%emt 0:00:30]} 24. cxd5 {[%emt 0:00:15]} cxd5 {[%emt 0:03:21][%cal Bc6d5,Bd5e4][%mdl 32]} 25. Qd4 $1 {[%emt 0:03:43]} Rd6 {[%emt 0:00:52]} 26. Re5 {[%emt 0:01:12]} Be4 {[%emt 0:00:01] And now ...Rg6 would win.} 27. Bxe4 {[%emt 0:02:53]} dxe4 {[%emt 0:00:01]} 28. Qe3 {[%emt 0:01:17]} (28. Qc5 $15 Rc6 29. Qe3) 28... f5 $19 {[%emt 0:00:30] ...Rd3 is the strong threat.} 29. Rc1 {[%emt 0:03:09]} (29. Qc5 $142 Rc6 30. Qd4 (30. Qd5+ $2 Kh7 $19)) 29... Qd7 {[%emt 0:00:01]} 30. Kh2 {[%emt 0:04:22]} Kh7 {[%emt 0:00:01] Hoping for ...Rff6.} 31. Rg1 {[%emt 0:00:46]} Rff6 {[%emt 0:00:41] White must now prevent ...b6.} 32. Qc5 {[%emt 0:01:04] [#]} (32. Qe2 $142) 32... Qf7 {[%emt 0:04:52]} (32... b6 $1 $19 {[%cal Rb6c5] has better winning chances.} 33. Qc4 Rd3) 33. Qc8 {[%emt 0:00:43][%mdl 8192]} (33. Rg2 $17) 33... Rc6 $2 {[%emt 0:06:27]} (33... Qa2 34. Qc3 Qxf2+ 35. Rg2 Qxf4+ 36. Qg3 Qxg3+ 37. Rxg3 f4) 34. Qd8 $2 {[%emt 0:01:48] [#]} (34. Qb8 Rc3 35. Qe8 (35. Re8 {gets mated.} Rxh3+ 36. Kg2 Rh2+ 37. Kf1 Qc4+ 38. Ke1 Qc1+ 39. Ke2 Qc2+ 40. Ke1 Qxf2+ 41. Kd1 Qxg1#)) 34... Qa2 $1 {[%emt 0:03:31][%csl LRa3,LRf2]} 35. Qd4 {[%emt 0:00:57]} Rcd6 {[%emt 0:01:54]} 36. Qc5 {[%emt 0:01:40]} b6 {[%emt 0:00:30]} 37. Qe3 {[%emt 0:00:37]} Rg6 {[%emt 0:03:13] aiming for ...Rxg1.} 38. Qe1 {[%emt 0:00:26]} Qxa3 {[%emt 0:01:25]} 39. Rxf5 {[%emt 0:00:09]} Rxg1 {[%emt 0:01:45]} 40. Qxg1 {[%emt 0:00:31]} Rg6 {[%emt 0:00:12]} 41. Qf1 {[%emt 0:00:52]} Qf3 {[%emt 0:00:10] Weighted Error Value: White=1.10/Black=0.43} 0-1

[Event "15th Tashkent Open Agzamov 2022"]
[Site "Tashkent"]
[Date "2022.05.05"]
[Round "1.10"]
[White "Vakhidov, Jakhongir"]
[Black "Bakhrillaev, Bakhrom"]
[Result "1-0"]
[ECO "E68"]
[WhiteElo "2552"]
[BlackElo "2086"]
[Annotator "TA"]
[PlyCount "65"]
[EventDate "2022.05.05"]
[EventType "swiss"]
[EventCountry "UZB"]
[SourceTitle "playchess.com"]
[Source "ChessBase"]
[SourceQuality "1"]
[TimeControl "5400+30"]

{[%evp 21,65,34,56,56,45,19,68,38,34,33,37,0,0,6,6,8,22,16,111,108,91,101,116,127,122,89,241,216,203,161,241,256,709,696,672,618,608,430,683,673,610,666,1545,1347,29980,29981]} 1. c4 Nf6 2. Nc3 g6 3. g3 Bg7 4. Bg2 O-O 5. d4 d6 6. Nf3 Nbd7 7. O-O e5 8. e4 exd4 9. Nxd4 Re8 10. h3 a6 11. Be3 Rb8 12. b3 {E68: King's Indian: Fianchetto: 6...Nbd7 7 0-0 e5 8 e4.} Ne5 13. a4 a5 (13... Nfd7 $11 {feels stronger.}) 14. Qc2 {White is slightly better.} Nfd7 15. Rad1 Nc6 $1 16. Qd2 Nxd4 17. Bxd4 Bxd4 18. Qxd4 b6 19. f4 {[%cal Oe4e5,Bf2f4,Bf4e5][%mdl 32] [#]} Bb7 $146 (19... f6 $1 $11 {remains equal.}) ({Predecessor:} 19... f6 20. Nd5 Rf8 21. f5 g5 22. h4 h6 23. Bf3 Bb7 24. Bh5 Ne5 25. Rf2 Kg7 26. Kg2 Qd7 27. Rh1 Rbc8 28. Qd1 Bxd5 29. exd5 Rh8 30. Rff1 {½-½ (30) Rawlings,A (2409)-Le Page,C (2358) ICCF email 2011}) 20. e5 $1 $16 Bxg2 21. Kxg2 Nc5 {[#]} 22. Nd5 $1 $36 {[%cal Bc3d5,Bd5f6,Bf6d7][%mdl 2080] White is on the roll.} Re6 (22... Nxb3 $2 23. Qb2 Nc5 24. exd6 (24. Nf6+ Kf8 $18) 24... cxd6 25. Nf6+ Kf8 26. Nxh7+ Kg8 27. Nf6+ Kf8 28. Nh7+ Kg8 29. Nf6+ Kf8 30. Nh7+ $18) 23. Rf3 {White is much more active. The black rooks are badly placed.} ({Don't do} 23. Nf6+ Rxf6 24. exf6 Nxb3) 23... dxe5 $2 {Loses the game.} (23... Nd7 $16) 24. fxe5 $18 {Hoping for Nf6+.} Qg5 25. Nf6+ ({Stronger than} 25. Nxc7 Rxe5 26. Nd5 Re2+ 27. Kg1 Qe5 28. Qxe5 Rxe5 $11) 25... Kg7 (25... Kh8 $142 26. Re1 Rf8) 26. Re1 c6 $2 (26... Rf8 27. h4 Qh6) 27. h4 Qh6 28. Ref1 {[#] And now Ng4 would win.} Rf8 29. Nd7 Kg8 (29... Nxd7 $142 30. Qxd7 Rfe8 31. Rxf7+ Kg8) 30. Nxb6 Nb7 31. Nd7 Rd8 32. Rxf7 Kh8 33. Rf8+ {Weighted Error Value: White=0.19 (very precise) /Black=0.75} 1-0